Cogmind - Beta 16 @@@ ROGUE MODE // 2025.11.02 @ 20:53:40 Player: SUBSUB Result: Destroyed by 82-E14(R) with Subdweller Machine Gun Performance ------------- Evolutions (0) 0 Regions Visited (2) 400 Robots Destroyed (31) 155 Value Destroyed (705) 705 Prototype IDs (12) 240 Alien Tech Used (0) 0 Bonus (0) 0 TOTAL SCORE: 1500 Bonus ------- None Cogmind --------- Core Integrity 0/250 Matter 265/300 Energy 63/100 System Corruption 0% Temperature Cool (0) Movement Rolling (125) Ox3 Location -10/Subcaves Parts ------- > --- POWER (1) -------- Subdweller Power Source > --- PROPULSION (2) --- Spiked Treads Wheel > --- UTILITY (2) ------ Large Storage Unit Makeshift Light Armor Plating > --- WEAPON (2) ------- Riot Gun Battle Cannon > --- INVENTORY (15) --- Subdweller Monowheel Transport Network Coupler Light Armor Plating Shield Generator Shield Generator Makeshift Hacking Suite Small Laser Heavy Battle Rifle Light Cannon Plasma Cutter Flamer Makeshift Spear Scrap Shield Fragment (47) Peak State ------------ > --- POWER ------------ Subdweller Power Source > --- PROPULSION ------- Spiked Treads Wheel > --- UTILITY ---------- Large Storage Unit Makeshift Light Armor Plating > --- WEAPON ----------- Subdweller Machine Gun Improved Light Cannon > --- INVENTORY -------- Subdweller Monowheel Transport Network Coupler Light Armor Plating Shield Generator Shield Generator Makeshift Hacking Suite Small Laser Heavy Battle Rifle Light Cannon Battle Cannon Plasma Cutter Flamer Makeshift Spear Scrap Shield Fragment [Rating: 17] Favorites ----------- Power Ion Engine Engine Ion Engine Propulsion Wheel Treads Spiked Treads Leg Aluminum Leg Wheel Wheel Utility Large Storage Unit Device Seismic Detector Storage Large Storage Unit Protection Makeshift Light Armor Plating Weapon Improved Light Cannon Energy Gun EM Pulse Gun Ballistic Gun Subdweller Machine Gun Ballistic Cannon Improved Light Cannon Launcher Grenade Launcher Build | -11 -10 -10 ------- Run | Yrd Mat Sub Slots Evolved . | . . . Power . | . . . Propulsion . | . . . Utility . | . . . Weapon . | . . . Parts Attached 29 | 7 7 15 Power 4 | 1 . 3 Engine 4 | 1 . 3 Core . | . . . Reactor . | . . . Propulsion 8 | 2 3 3 Treads 1 | . . 1 Leg 2 | 2 . . Wheel 5 | . 3 2 Hover . | . . . Flight . | . . . Utility 6 | 2 2 2 Device 2 | 1 . 1 Storage 3 | 1 2 . Processor . | . . . Hackware . | . . . Protection 1 | . . 1 Artifact . | . . . Weapon 11 | 2 2 7 Energy Gun 3 | 2 . 1 Energy Cannon . | . . . Ballistic Gun 1 | . . 1 Ballistic Cannon 5 | . 1 4 Launcher 2 | . 1 1 Special Weapon . | . . . Impact Weapon . | . . . Slashing Weapon . | . . . Piercing Weapon . | . . . Special Melee Weapon . | . . . Unidentified Prototypes . | . . . Parts Lost 15 | . 1 14 Power 2 | . . 2 Propulsion 4 | . . 4 Utility 1 | . . 1 Weapon 8 | . 1 7 Highest Loss Streak 3 | . 1 3 To Critical Strikes . | . . . Average Backups 11 | 2 9 11 Power . | . 1 . Propulsion 1 | 1 2 . Utility 3 | . 2 4 Weapon 4 | . 3 5 Tool/Special . | . . . Unused Backups 12 | . 1 11 Power 1 | . 1 . Propulsion 1 | . . 1 Utility 5 | . . 5 Weapon 4 | . . 4 Tool/Special 1 | . . 1 Average Slot Usage (%) 92 | . 99 89 Engine 7 | . 14 5 Treads 5 | . . 7 Leg 3 | . 14 . Wheel 19 | . 14 20 Device 5 | . 14 2 Storage 14 | . 14 14 Protection 7 | . . 10 Energy Gun 3 | . 14 . Ballistic Gun 4 | . . 6 Ballistic Cannon 15 | . 1 21 Launcher 3 | . 12 . Peak Build Rating 17 | 7 10 17 Average Rating 11 | 4 7 13 On Entrance 5 | . 7 10 Avg Prop Armor Cover (%) 11 | . . 11 Naked Turns . | . . . Heaviest Build 37 | 14 33 37 Greatest Support 26 | 20 26 26 Greatest Overweight (x) 3 | 1 1 3 Average Overweight (x) 1 | . . 1 Largest Inventory Capacity 15 | 8 15 15 Average Capacity 14 | 6 12 15 Most Carried 15 | 3 15 15 Average Carried 11 | 2 10 12 Final Capacity 15 | 8 15 15 Final Carried 14 | 3 14 13 Class Distribution -------------------- 100% | Mutant Dominant Class ---------------- Mutant | -10/Materials Mutant | -10/Subcaves Resources | -11 -10 -10 ----------- Run | Yrd Mat Sub Matter Collected 1349 | 215 214 920 Remotely . | . . . Salvage Created 489 | 24 255 210 Parts 39 | 3 22 14 Haulers Intercepted 1 | . 1 . Recyclers Shooed . | . . . Parts Field Recycled . | . . . Retrieved Matter . | . . . Parts Self-Destructed 6 | . . 6 Prevented . | . . . Parts Restored . | . . . Kills | -11 -10 -10 ------- Run | Yrd Mat Sub Combat Hostiles Destroyed 23 | . 9 14 Guns 2 | . 2 . Cannons 13 | . . 13 AOE 8 | . 7 1 Classes Destroyed 8 | 1 4 3 Worker 2 | . 2 . Tunneler 3 | 1 2 . Hauler 1 | . 1 . Turret 2 | . . 2 Swarmer 11 | . 6 5 Grunt 3 | . 3 . Sentry 1 | . . 1 Subdweller 8 | . . 8 Best Kill Streak 8 | 1 8 3 Combat Bots Only 4 | . 4 3 Max Kills in Single Turn 2 | 1 2 1 Gunslinging . | . . . Exploded 1 | . 1 1 Melee . | . . . Uniques/NPCs Destroyed . | . . . Combat | -11 -10 -10 -------- Run | Yrd Mat Sub Hostile Shots Fired 201 | . 38 163 Missed 69 | . 12 57 Hits 132 | . 26 106 Projectile 132 | . 26 106 AOE 2 | . . 2 Critical Strikes 3 | . . 3 Damage Taken 1865 | 14 347 1504 Core 263 | . 43 220 Absorbed by Shields 47 | . . 47 Regen/Repaired (Parts) 35 | . 35 . Core Remaining (%) 100 | 100 . . Volleys Fired 168 | 2 46 120 Largest 2 | 2 2 2 Hottest 83 | 80 70 83 Shots Fired 251 | 4 47 200 Gun 44 | 4 28 12 Cannon 194 | . 7 187 Launcher 13 | . 12 1 Special . | . . . Kinetic 205 | . 7 198 Thermal 2 | 2 . . Explosive 12 | . 12 . Electromagnetic 32 | 2 28 2 Robot Hit Streak 11 | 2 7 11 Robot Miss Streak 5 | 1 3 5 Penetration Max . | . . . Secondary Targets . | . . . Shots Hit Robots 114 | 3 24 87 Core Hits 54 | 2 21 31 Critical Kills . | . . . Critical Parts Destroyed . | . . . Critical Strikes . | . . . Melee Attacks . | . . . Impact . | . . . Slashing . | . . . Piercing . | . . . Sneak Attacks . | . . . Combat Hostiles . | . . . Follow-up Attacks . | . . . Damage Inflicted 2642 | 88 676 1878 Guns 393 | 37 251 105 Cannons 1797 | . 108 1689 Explosions 452 | 51 317 84 Melee . | . . . Ramming . | . . . Kinetic 1954 | . 108 1846 Thermal 73 | 73 . . Explosive 317 | . 317 . Electromagnetic 298 | 15 251 32 Impact . | . . . Slashing . | . . . Piercing . | . . . Highest Corruption . | . . . Average Corruption . | . . . Corruption Purged . | . . . Corruption Blocked . | . . . Overload Shots . | . . . Overflow Damage 38 | 2 . 36 Projectiles 15 | . . 15 Explosions 23 | 2 . 21 Melee . | . . . Knockbacks 26 | . 1 25 Impact . | . . . Kinetic 26 | . 1 25 Secondary . | . . . Self-Inflicted Damage 124 | 15 52 57 Shots 7 | 1 5 1 Rammed . | . . . Targets Rammed . | . . . Kicked . | . . . Crushed . | . . . Highest Temperature 111 | 48 111 . Average Temperature 44 | 29 46 . Received Heat Transfer 398 | . 114 284 Siege Activations . | . . . Martial Activations . | . . . Shielding Activations . | . . . Robots Disrupted . | . . . Combat Hostiles . | . . . Robots Corrupted . | . . . Combat Hostiles . | . . . Parts Fried 1 | . 1 . Impact Corruptions . | . . . Robots Melted . | . . . Combat Hostiles . | . . . Parts Melted . | . . . Heat Transferred 200 | 200 . . Parts Sabotaged . | . . . Parts Stolen . | . . . Parts Stripped . | . . . Power Chain Reactions 1 | 1 . . Alert | -11 -10 -10 ------- Run | Yrd Mat Sub Maximum Alert Level 1 | . 1 . Low Security (%) 93 | 100 92 . Level 1 6 | . 7 . Level 2 . | . . . Level 3 . | . . . Level 4 . | . . . Level 5 . | . . . High Security . | . . . Max Security . | . . . Peak Influence 237 | 5 237 . Initial . | . . . Average 29 | . 32 . Influence Increases 652 | 5 387 260 Destroy 0b10 Robot/C 340 | . 180 160 Destroy 0b10 Robot/NC 30 | 5 25 . Destroy Leader 52 | . 42 10 Successful Hack 9 | . 9 . Disable Machine 45 | . 45 . Destroy Structure 86 | . 86 . Lose Combat Pursuer 90 | . . 90 Influence Decreases 652 | 5 164 483 Entered New Map 108 | . . 108 Time Decay 455 | 5 154 296 Lost Part 89 | . 10 79 Squads Dispatched 1 | . 1 . Investigation . | . . . Extermination . | . . . Reinforcement 1 | . 1 . Assault . | . . . Garrison . | . . . Intercept . | . . . Searches Triggered . | . . . Construction Impeded . | . . . Haulers Reinforced . | . . . Active Scanning Responses . | . . . Cargo Convoy Interrupts . | . . . Stealth | -11 -10 -10 --------- Run | Yrd Mat Sub Distress Signals 1 | . 1 . Communications Jammed . | . . . Distress Signals . | . . . Times Spotted 38 | . 13 25 Peak Tracking Total 5 | . 4 5 Tactical Retreats 3 | . . 3 Traps | -11 -10 -10 ------- Run | Yrd Mat Sub Traps Triggered 1 | . . 1 Indirectly . | . . . Trap Hack Attempts . | . . . Triggered . | . . . Disarmed 6 | . 6 . Reprogrammed . | . . . Reused . | . . . Traps Extracted . | . . . Installed . | . . . Triggered . | . . . Machines | -11 -10 -10 ---------- Run | Yrd Mat Sub Machines Disabled 6 | . 3 3 Max in Single Turn 3 | . 3 1 Machines Repaired . | . . . Machines Dismantled . | . . . Machines Sabotaged . | . . . Overloaded Fab Kills . | . . . Hacking | -11 -10 -10 --------- Run | Yrd Mat Sub Machines Accessed 5 | . 4 1 Terminals 3 | . 3 . Fabricators . | . . . Repair Stations 1 | . 1 . Recycling Units . | . . . Scanalyzers . | . . . Garrison Access . | . . . Total Hacks 22 | . 13 9 Successful 14 | . 5 9 Failed 7 | . 7 . Catastrophic 1 | . 1 . Database Lockouts 1 | . 1 . Manual 10 | . 10 . Terminals 9 | . 9 . Fabricators . | . . . Repair Stations 4 | . 4 . Recycling Units . | . . . Scanalyzers . | . . . Garrison Access . | . . . Terminal Hacks 12 | . 3 9 Record 8 | . . 8 Robot Analysis 1 | . 1 . Locate Traps 1 | . 1 . Disarm Traps 1 | . 1 . Proto ID Catalog 1 | . . 1 Fabricator Hacks . | . . . Repair Station Hacks 2 | . 2 . Scan Component 1 | . 1 . Repair 1 | . 1 . Recycling Unit Hacks . | . . . Scanalyzer . | . . . Garrison Access Hacks . | . . . Unauthorized Hacks . | . . . Terminals . | . . . Fabricators . | . . . Repair Stations . | . . . Recycling Units . | . . . Scanalyzers . | . . . Garrison Access . | . . . Data Cores Recovered . | . . . Used . | . . . Hacking Detections 2 | . 2 . Full Trace Events . | . . . Feedback Events . | . . . Feedback Blocked . | . . . Robot Schematics Acquired . | . . . Robots Built . | . . . Authchips . | . . . Time . | . . . Total Robot Build Rating . | . . . Part Schematics Acquired . | . . . Parts Built . | . . . Authchips . | . . . Time . | . . . Total Part Build Rating . | . . . Part Studies Acquired . | . . . Parts Repaired 1 | . 1 . Time 26 | . 26 . Parts Recycled . | . . . Recycled Matter . | . . . Retrieved Matter . | . . . Retrieved Components . | . . . Parts Scanalyzed . | . . . Part Schematics Acquired . | . . . Parts Damaged . | . . . Bothacking | -11 -10 -10 ------------ Run | Yrd Mat Sub Used RIF Installer . | . . . Robots Hacked . | . . . Non-combat . | . . . Combat . | . . . Robot Hacks Applied . | . . . Relay Couplers Released . | . . . Fabnet Peak Effective % . | . . . Robots Rewired . | . . . Allies Hacked . | . . . Hacks Repelled . | . . . Allies | -11 -10 -10 -------- Run | Yrd Mat Sub Total Allies . | . . . Largest Group . | . . . Highest-Rated Group . | . . . Highest-Rated Ally . | . . . Total Orders . | . . . Ally Attacks . | . . . Total Damage . | . . . Kills . | . . . Allies Corrupted . | . . . Allies Melted . | . . . Intel | -11 -10 -10 ------- Run | Yrd Mat Sub Active Infowar (turns) 1064 | 16 764 284 Seismic 1064 | 16 764 284 Robot Analysis Total 1 | . 1 . Derelict Logs Recovered 2 | . . 2 Drone Launches . | . . . Drone Recoveries . | . . . Exploration | -11 -10 -10 ------------- Run | Yrd Mat Sub Turns Passed 3090 | 77 764 2249 Spaces Moved 2108 | 51 457 1600 Core 9 | 9 . . Treads 17 | . . 17 Legs 225 | 42 183 . Wheels 1857 | . 274 1583 Hover . | . . . Flight . | . . . Fastest Speed 50 | 50 95 95 Average Speed 117 | 113 128 114 Slowest Speed 260 | 120 190 260 Overloaded Moves . | . . . Propulsion Burnouts . | . . . Robots Hopped . | . . . Potential Cave-ins . | . . . Cave-ins Triggered . | . . . Exploration Rate (%) 40 | 4 51 67 Regions Visited 2 Branch Regions 1 Pre-discovered Areas . | . . . Known Exits Taken . | . . . Unknown Exits Taken 2 | 1 1 . Scrap Searched 10 | . . 10 Spaces Dug 33 | . 33 . Terrain Destroyed 97 | . 86 11 Melee . | . . . Projectile 1 | . 1 . AOE 96 | . 85 11 Terrain Rammed . | . . . Walls Destroyed . | . . . Machines Disabled . | . . . Actions | -11 -10 -10 --------- Run | Yrd Mat Sub Total 2461 | 62 585 1814 Wait 120 | . 55 65 Move 2106 | 50 456 1600 Hop . | . . . Pick Up 30 | 3 15 12 Fast Attach 10 | 7 1 2 Attach 13 | . 1 12 Detach . | . . . Swap 8 | . 6 2 Drop 6 | . 5 1 Fire 168 | 2 46 120 Melee . | . . . Ram . | . . . Kick . | . . . Crush . | . . . Escape Stasis . | . . . Rewire . | . . . Trap . | . . . Miscellaneous . | . . . Route ------- -11/Scrapyard -10/Materials (discovered 3 exits: [*Mat x2] / *Sub) -10/Subcaves (discovered 3 exits: *Mat x2 / [*Rec]) History --------- Turn | Location | Event 37 | -11/Scrapyard | Discovered new exit (range 15) 78 | -11/Scrapyard | Entered Materials 234 | -10/Materials | Discovered new exit (range 15) 305 | -10/Materials | Build established: Mutant 383 | -10/Materials | Central database locked down 606 | -10/Materials | Repaired Grenade Launcher 682 | -10/Materials | Discovered new exit (range 3) 716 | -10/Materials | Discovered new exit (range 5) 842 | -10/Materials | Entered Subcaves 843 | -10/Subcaves | Approached by a straggling Scientist 866 | -10/Subcaves | Disturbed a concealed Subdweller 1002 | -10/Subcaves | Shifting Twisted Machinery released Battle Cannon 1073 | -10/Subcaves | Discovered new exit (range 6) 1076 | -10/Subcaves | Shifting Twisted Machinery released Sub. Monowheel 1193 | -10/Subcaves | Core integrity fell below 50% 1262 | -10/Subcaves | Discovered new exit (range 10) 1297 | -10/Subcaves | Lost 3 parts (3w) 1474 | -10/Subcaves | A swath of the cavern ceiling suddenly collapsed 1718 | -10/Subcaves | Shifting Twisted Machinery released Sub. Optics 1735 | -10/Subcaves | Identified exit to Materials 1835 | -10/Subcaves | Visited 4L-MR0's lab 1924 | -10/Subcaves | Core integrity fell below 20% 2223 | -10/Subcaves | Shifting Twisted Machinery released Scrap Shield 3091 | -10/Subcaves | Destroyed by 82-E14(R) with Subdweller Machine Gun Last Messages --------------- 02555_ Acquired Riot Gun. 02559_ Subatomizers dissect the Sub. Optics. 02644_ S-10 Pest knocked back. 02653_ S-10 Pest destroyed. 02658_ Acquired 1 matter. 02661_ Acquired 5 matter. 02665_ Acquired 6 matter. 02672_ Acquired 12 matter. 02676_ Acquired derelict log, extracted data. Data stored: Mines entrances (x2). 02812_ YG-WYQ(u) tweaks Twisted Machinery. 02874_ Y-45 Defender destroyed. 02877_ Acquired 27 matter. 02879_ Acquired 5 matter. 02888_ Sub. Power Source shoots sparks and powers down. 02888_ Beam Rifle fries itself beyond repair. 03037_ Sub. Machine Gun destroyed. 03061_ Imp. Light Cannon destroyed. 03082_ Subatomizers dissect the Sub. Machine Gun. 03089_ 82-E14(R) knocked back. Map ----- +----------------------------------------------------+ | ###??????????????????????????????????????????????? | | ##?????????????????????????????????????????????# | | ##??####?????????????????????????????????????## | | #### ##????????####????????????????######?## | | ## ##??????## ##???????????????# ### | | ### ##?##### ###???#######????# ## | | ## ### ##### # #?#### ## | | ### ## | | # | | # ### ## ## | | #?## ############# ####### | | ##?## ###???????????###?????# ## | | ## ##### ##????????????????????# ### | | ## #?# #??????????????#####??# ###### | | # ##?### ##??????????????# #??####??## | | "### ##???# ##???????????????#% ###??##??# | | "#?####????## ##???######??????## ### ##?# | | ##??????????# ##?##% <<#??????# ### | | #??########## # ###%[ %<#?????## ## | | #### ##!# ## ##[*%%<##????# ## ### | | """ ## ## [ %<######" ###### | | [! # ## ! <## #"" # ## | | # # # =! # ##% <##% %# ## | | #### ###!! ### ^%<## # ## | | #??## #?#&& #?#<% <## #" # ### | | #???# #### # #?#<<< @#### ## # #?# | | #???# & ###### #?#< < ##" # # ### | | ???## ##?##?#<<<< ## ## ### #### | | ???# ## # # ####?#<<<